Cogmind - Beta 16 @@@ ROGUE MODE // 2025.12.16 @ 22:21:17 Player: ErikJake Result: Self-destructed Performance ------------- Evolutions (6) 3000 Regions Visited (9) 1800 Robots Destroyed (44) 220 Value Destroyed (803) 803 Prototype IDs (36) 720 Alien Tech Used (0) 0 Bonus (360) 360 TOTAL SCORE: 6903 Bonus ------- Follower Combat Kills 60 Aligned with FarCom 300 Cogmind --------- Core Integrity 968/1150 Matter 5/300 Energy 100/100 System Corruption 9% Temperature Cool (0) Movement Flying (272) Ox3 Location -4/Factory Parts ------- > --- POWER (2) -------- Improved Fusion Compressor > --- PROPULSION (6) --- Cooled Cesium-ion Thruster Cooled Cesium-ion Thruster > --- UTILITY (9) ------ Large Storage Unit Improved Signal Interpreter ECM Suite Improved Light Armor Plating Hacking Suite Hacking Suite Hacking Suite Hacking Suite > --- WEAPON (2) ------- Force Lance > --- INVENTORY (15) --- Cesium-ion Thruster Cesium-ion Thruster Improved Cesium-ion Thruster Cooled Cesium-ion Thruster Biomechanical Wings Triangulator Cloak of Protection Layered Medium Armor Plating High-powered Shock Rifle Heavy Ion Cannon Flak Gun Rocket Launcher Great Maul Peak State ------------ > --- POWER ------------ Light Deuterium Engine Improved Fusion Compressor > --- PROPULSION ------- Cooled Cesium-ion Thruster Cooled Cesium-ion Thruster Flying Fortress v7 > --- UTILITY ---------- Large Storage Unit Improved Signal Interpreter ECM Suite Improved Medium Armor Plating Layered Light Armor Plating Hacking Suite Hacking Suite Hacking Suite System Shield > --- WEAPON ----------- Flak Gun Dual-blade Saw > --- INVENTORY -------- Cesium-ion Thruster Cesium-ion Thruster Improved Cesium-ion Thruster Cooled Cesium-ion Thruster Biomechanical Wings Triangulator Cloak of Protection Improved Light Armor Plating High-powered Shock Rifle Heavy Ion Cannon Hardcell Cannon Rocket Launcher Great Maul [Rating: 96] Favorites ----------- Power Ion Engine Engine Ion Engine Power Core Improved Fusion Compressor Propulsion Light Treads Treads Light Treads Wheel Compact Wheel Flight Unit Flying Fortress v7 Utility Large Storage Unit Device Improved Sensor Array Storage Large Storage Unit Processor Improved Signal Interpreter Hackware Hacking Suite Protection Light Armor Plating Weapon Assault Rifle Energy Gun EM Pulse Gun Energy Cannon Beam Cannon Ballistic Gun Assault Rifle Ballistic Cannon Hardcell Cannon Launcher Rocket Launcher Impact Weapon Great Maul Slashing Weapon Dual-blade Saw Piercing Weapon Force Lance Build | -11 -10 -10 -10 -9 -8 -7 -6 -5 -4 ------- Run | Yrd Mat Min Exi Min Mat Fac Fac Fac Fac Slots Evolved 12 | . . . . . 4 2 2 2 2 Power 1 | . . . . . . . 1 . . Propulsion 4 | . . . . . 2 . 1 . 1 Utility 7 | . . . . . 2 2 . 2 1 Weapon . | . . . . . . . . . . Parts Attached 55 | 6 12 . . 2 5 8 11 4 7 Power 8 | 1 2 . . 1 . 1 2 . 1 Engine 7 | 1 2 . . 1 . 1 2 . . Core 1 | . . . . . . . . . 1 Reactor . | . . . . . . . . . . Propulsion 10 | 2 2 . . . 1 . 4 . 1 Treads 2 | 2 . . . . . . . . . Leg . | . . . . . . . . . . Wheel 2 | . 2 . . . . . . . . Hover . | . . . . . . . . . . Flight 6 | . . . . . 1 . 4 . 1 Utility 24 | 1 4 . . . 4 4 5 4 2 Device 10 | . 2 . . . 1 2 4 1 . Storage 3 | 1 1 . . . 1 . . . . Processor 1 | . . . . . . 1 . . . Hackware 5 | . . . . . 1 1 . 2 1 Protection 5 | . 1 . . . 1 . 1 1 1 Artifact . | . . . . . . . . . . Weapon 13 | 2 4 . . 1 . 3 . . 3 Energy Gun 2 | . 2 . . . . . . . . Energy Cannon 1 | . 1 . . . . . . . . Ballistic Gun 3 | 2 . . . . . 1 . . . Ballistic Cannon 1 | . . . . . . . . . 1 Launcher 2 | . 1 . . 1 . . . . . Special Weapon . | . . . . . . . . . . Impact Weapon 2 | . . . . . . 2 . . . Slashing Weapon 1 | . . . . . . . . . 1 Piercing Weapon 1 | . . . . . . . . . 1 Special Melee Weapon . | . . . . . . . . . . Unidentified Prototypes 4 | . . . . . . . 4 . . Parts Lost 13 | . 4 . . . . . 1 1 7 Power 2 | . . . . . . . . . 2 Propulsion 3 | . 1 . . . . . 1 . 1 Utility 5 | . 1 . . . . . . 1 3 Weapon 3 | . 2 . . . . . . . 1 Highest Loss Streak 4 | . 4 . . . . . 1 1 4 To Critical Strikes . | . . . . . . . . . . Average Backups 12 | 3 11 14 13 10 12 12 13 14 13 Power 1 | . 2 2 1 1 1 1 . . . Propulsion 2 | 1 1 1 1 1 2 5 3 6 5 Utility 5 | . 4 7 7 6 6 4 5 4 3 Weapon 2 | . 2 3 2 2 1 1 3 4 4 Tool/Special . | . . . . . . . . . . Unused Backups 29 | . 5 . 2 4 2 3 5 . 8 Power 4 | . 3 . . . 1 . . . . Propulsion 8 | . . . . . . 3 2 . 3 Utility 11 | . 1 . 1 4 1 . 2 . 2 Weapon 5 | . 1 . 1 . . . . . 3 Tool/Special 1 | . . . . . . . 1 . . Average Slot Usage (%) 88 | . 99 100 100 100 61 73 79 78 79 Engine 11 | . 14 14 14 14 9 7 12 11 4 Treads 14 | . 21 28 28 28 3 . . . . Wheel 1 | . 6 . . . . . . . . Flight 4 | . . . . . 6 7 13 11 14 Device 5 | . 11 . . . 2 9 9 7 4 Storage 10 | . 14 14 14 14 9 7 6 5 5 Processor 1 | . . . . . . 4 6 5 5 Hackware 5 | . . . . . 3 11 13 20 21 Protection 8 | . 2 14 14 14 9 7 2 2 8 Energy Cannon 7 | . 7 14 14 14 9 1 . . . Ballistic Gun 9 | . 14 11 14 9 7 7 6 5 2 Launcher 1 | . 2 2 . 4 1 . . . . Impact Weapon 1 | . . . . . . 5 6 5 1 Peak Build Rating 96 | 6 10 10 12 15 53 61 78 84 96 Average Rating 34 | 5 8 9 10 13 39 58 70 81 89 On Entrance 32 | . 6 10 9 12 15 53 61 78 77 Avg Prop Armor Cover (%) 2 | . . . . . . . . . 2 Naked Turns . | . . . . . . . . . . Heaviest Build 56 | 14 35 35 33 37 43 46 45 46 56 Greatest Support 68 | 40 40 40 40 40 50 50 68 68 62 Greatest Overweight (x) 17 | . . . . . . . . . 17 Average Overweight (x) . | . . . . . . . . . . Largest Inventory Capacity 20 | 8 15 15 15 15 20 15 15 15 15 Average Capacity 14 | 7 13 15 15 15 15 15 15 15 15 Most Carried 15 | 6 15 15 15 15 15 15 15 15 15 Average Carried 13 | 3 11 14 14 14 14 14 14 14 13 Final Capacity 15 | 8 15 15 15 15 15 15 15 15 15 Final Carried 15 | 6 15 15 15 15 15 15 15 15 13 Class Distribution -------------------- 67% | Mutant 28% | Hacker-Mutant 4% | Scientist-Mutant Dominant Class ---------------- Mutant | -10/Materials Mutant | -10/Mines Mutant | -10/Exiles Mutant | -9/Mines Mutant | -8/Materials Hacker-Mutant | -7/Factory Hacker-Mutant | -6/Factory Hacker-Mutant | -5/Factory Hacker-Mutant | -4/Factory Resources | -11 -10 -10 -10 -9 -8 -7 -6 -5 -4 ----------- Run | Yrd Mat Min Exi Min Mat Fac Fac Fac Fac Matter Collected 967 | 297 238 57 . 31 16 156 93 28 51 Remotely . | . . . . . . . . . . Salvage Created 945 | 103 516 59 . 40 16 56 87 22 46 Parts 93 | 18 44 7 . 8 4 3 5 2 2 Haulers Intercepted 1 | . 1 . . . . . . . . Recyclers Shooed 1 | 1 . . . . . . . . . Parts Field Recycled . | . . . . . . . . . . Retrieved Matter . | . . . . . . . . . . Parts Self-Destructed . | . . . . . . . . . . Prevented . | . . . . . . . . . . Parts Restored . | . . . . . . . . . . Kills | -11 -10 -10 -10 -9 -8 -7 -6 -5 -4 ------- Run | Yrd Mat Min Exi Min Mat Fac Fac Fac Fac Combat Hostiles Destroyed 23 | . 16 4 . 3 . . . . . Guns 10 | . 10 . . . . . . . . Cannons 6 | . 5 1 . . . . . . . AOE 7 | . 1 3 . 3 . . . . . Classes Destroyed 9 | 2 4 . . . 1 . 1 . 1 Worker 6 | 2 . . . 2 . . 2 . . Builder 1 | . . . . . . . 1 . . Tunneler 4 | 3 . . . . . 1 . . . Hauler 1 | . 1 . . . . . . . . Operator 8 | . . . . . 1 2 3 2 . Watcher 1 | . . . . . . . . . 1 Swarmer 14 | . 8 3 . 3 . . . . . Grunt 7 | . 6 1 . . . . . . . Subdweller 2 | . 2 . . . . . . . . Best Kill Streak 5 | 4 3 3 . 5 1 1 1 1 1 Combat Bots Only 3 | . 3 3 . 3 . . . . . Max Kills in Single Turn 5 | 2 1 3 . 5 1 1 1 1 1 Gunslinging . | . . . . . . . . . . Exploded 3 | . 1 3 . 3 . . . . . Melee . | . . . . . . . . . . Uniques/NPCs Destroyed . | . . . . . . . . . . Combat | -11 -10 -10 -10 -9 -8 -7 -6 -5 -4 -------- Run | Yrd Mat Min Exi Min Mat Fac Fac Fac Fac Hostile Shots Fired 399 | . 75 7 . 2 . 38 123 14 140 Missed 198 | . 20 2 . . . 28 77 7 64 Hits 201 | . 55 5 . 2 . 10 46 7 76 Projectile 201 | . 55 5 . 2 . 10 46 7 76 AOE 1 | . . . . . . . . . 1 Critical Strikes 8 | . 2 . . . . . 3 . 3 Damage Taken 3435 | . 675 60 . 41 . 93 689 255 1622 Core 427 | . 114 12 . 13 . 5 101 . 182 Absorbed by Shields . | . . . . . . . . . . Regen/Repaired (Parts) 116 | . . . . . . . . . 116 Core Remaining (%) 88 | 100 . . . 44 100 99 88 100 . Volleys Fired 81 | 11 34 13 . 1 6 1 7 5 3 Largest 2 | 2 2 2 . 2 2 2 1 1 1 Hottest 100 | 40 100 93 . 93 80 88 28 28 55 Shots Fired 147 | 22 68 26 . 2 12 2 7 5 3 Gun 108 | 22 55 12 . . 6 1 7 5 . Cannon 35 | . 11 13 . 1 6 1 . . 3 Launcher 4 | . 2 1 . 1 . . . . . Special . | . . . . . . . . . . Kinetic 70 | 22 14 12 . . 6 1 7 5 3 Thermal 32 | . 11 13 . 1 6 1 . . . Explosive 4 | . 2 1 . 1 . . . . . Electromagnetic 41 | . 41 . . . . . . . . Robot Hit Streak 7 | 6 7 5 . . 3 4 5 4 3 Robot Miss Streak 7 | 1 3 5 . . 7 . 5 5 . Penetration Max . | . . . . . . . . . . Secondary Targets 3 | . 3 . . . . . . . . Max Gunslinging Chain 1 | . 1 . . . . . . . . Shots Hit Robots 96 | 15 39 11 . . 3 3 14 6 5 Core Hits 55 | 5 21 6 . 6 2 1 7 6 1 Critical Kills 1 | . . . . . . . 1 . . Critical Parts Destroyed 4 | . . 1 . . . 1 2 . . Critical Strikes 9 | . 3 1 . . . 1 3 . 1 Destroy 1 | . . 1 . . . . . . . Blast 1 | . . . . . . . . . 1 Corrupt 3 | . 3 . . . . . . . . Smash 4 | . . . . . . 1 3 . . Melee Attacks 89 | . . . . . . 11 45 13 20 Impact 72 | . . . . . . 11 45 13 3 Slashing 13 | . . . . . . . . . 13 Piercing 4 | . . . . . . . . . 4 Sneak Attacks 7 | . . . . . . 1 5 . 1 Combat Hostiles . | . . . . . . . . . . Follow-up Attacks . | . . . . . . . . . . Damage Inflicted 2766 | 193 631 338 . 256 47 205 655 168 273 Guns 833 | 193 421 58 . . 11 . 90 60 . Cannons 455 | . 121 123 . 18 36 17 . . 140 Explosions 467 | . 89 149 . 229 . . . . . Melee 994 | . . . . . . 188 565 108 133 Ramming 17 | . . 8 . 9 . . . . . Kinetic 647 | 193 95 58 . . 11 . 90 60 140 Thermal 315 | . 121 123 . 18 36 17 . . . Explosive 467 | . 89 149 . 229 . . . . . Electromagnetic 326 | . 326 . . . . . . . . Impact 921 | . . . . . . 188 565 108 60 Slashing 73 | . . . . . . . . . 73 Piercing . | . . . . . . . . . . Highest Corruption 8 | . . . . . . . 1 . 8 Average Corruption 1 | . . . . . . . 1 . 2 Corruption Purged . | . . . . . . . . . . Corruption Blocked . | . . . . . . . . . . Effects 7 | . . . . . . . 3 . 4 Message Errors 2 | . . . . . . . 1 . 1 Matter Fused 1 | . . . . . . . . . 1 Heat Flow Errors 1 | . . . . . . . 1 . . Energy Discharges 2 | . . . . . . . . . 2 Parts Fused 1 | . . . . . . . 1 . . Overload Shots . | . . . . . . . . . . Overflow Damage 567 | . 8 . . . . 158 333 26 42 Projectiles . | . . . . . . . . . . Explosions 8 | . 8 . . . . . . . . Melee 559 | . . . . . . 158 333 26 42 Knockbacks 4 | . . . . . . . 4 . . Impact 4 | . . . . . . . 4 . . Kinetic . | . . . . . . . . . . Secondary . | . . . . . . . . . . Self-Inflicted Damage 62 | . 62 . . . . . . . . Shots 1 | . 1 . . . . . . . . Rammed 3 | . . 2 . 1 . . . . . Targets Rammed 3 | . . 2 . 1 . . . . . Kicked . | . . . . . . . . . . Crushed . | . . . . . . . . . . Highest Temperature 299 | . 299 168 . 45 173 4 171 . 134 Average Temperature 78 | . 98 67 . 22 88 2 82 . 64 Received Heat Transfer 399 | . 156 33 . . . 33 78 9 90 Effects 1 | . 1 . . . . . . . . Energy Bleed 1 | . 1 . . . . . . . . Siege Activations . | . . . . . . . . . . Martial Activations . | . . . . . . . . . . Shielding Activations . | . . . . . . . . . . Robots Disrupted . | . . . . . . . . . . Combat Hostiles . | . . . . . . . . . . Robots Corrupted 3 | . . . . . . 1 2 . . Combat Hostiles . | . . . . . . . . . . Parts Fried 12 | . 1 . . . . 4 5 2 . Impact Corruptions 17 | . . . . . . 5 11 1 . Robots Melted . | . . . . . . . . . . Combat Hostiles . | . . . . . . . . . . Parts Melted . | . . . . . . . . . . Heat Transferred 666 | . 259 259 . 37 74 37 . . . Parts Sabotaged . | . . . . . . . . . . Parts Stolen . | . . . . . . . . . . Parts Stripped . | . . . . . . . . . . Power Chain Reactions . | . . . . . . . . . . Alert | -11 -10 -10 -10 -9 -8 -7 -6 -5 -4 ------- Run | Yrd Mat Min Exi Min Mat Fac Fac Fac Fac Maximum Alert Level . | . . . . . . . . . . Low Security (%) 100 | 100 100 100 . 100 100 100 100 100 100 Level 1 . | . . . . . . . . . . Level 2 . | . . . . . . . . . . Level 3 . | . . . . . . . . . . Level 4 . | . . . . . . . . . . Level 5 . | . . . . . . . . . . High Security . | . . . . . . . . . . Max Security . | . . . . . . . . . . Peak Influence 197 | 10 197 74 . 143 35 99 76 37 81 Initial 35 | . . . . . 35 . 12 12 9 Average 28 | . 59 8 . 44 5 34 29 13 18 Influence Increases 1668 | 25 458 154 . 153 24 220 292 87 255 Destroy 0b10 Robot/C 460 | . 280 80 . 100 . . . . . Destroy 0b10 Robot/NC 105 | 25 5 . . 10 5 15 30 10 5 Destroy Leader 74 | . 42 10 . 20 . . . . 2 Allied During Kill 14 | . . . . 14 . . . . . Successful Hack 131 | . 3 . . . 19 32 51 12 14 Disable Machine 150 | . 45 . . . . 15 75 15 . Destroy Structure 149 | . 53 4 . 9 . 8 31 20 24 Partial Spotted 105 | . . . . . . 15 45 15 30 Lose Combat Pursuer 480 | . 30 60 . . . 135 60 15 180 Influence Decreases 1636 | 25 458 154 . 60 117 193 293 93 243 Entered New Map 98 | . . . . . 58 . 15 14 11 Time Decay 1274 | 25 295 154 . 60 59 193 268 69 151 Lost Part 94 | . 40 . . . . . 10 10 34 Purge Threat 170 | . 123 . . . . . . . 47 Squads Dispatched 18 | . 4 . . . 3 1 5 2 3 Investigation 4 | . 3 . . . . . 1 . . Extermination 5 | . . . . . . 1 1 1 2 Reinforcement 9 | . 1 . . . 3 . 3 1 1 Assault . | . . . . . . . . . . Garrison . | . . . . . . . . . . Intercept . | . . . . . . . . . . Searches Triggered . | . . . . . . . . . . Construction Impeded 1 | . . . . . . . 1 . . Haulers Reinforced . | . . . . . . . . . . Active Scanning Responses . | . . . . . . . . . . Cargo Convoy Interrupts . | . . . . . . . . . . Stealth | -11 -10 -10 -10 -9 -8 -7 -6 -5 -4 --------- Run | Yrd Mat Min Exi Min Mat Fac Fac Fac Fac Distress Signals 7 | . 1 . . . . 2 1 . 3 Communications Jammed . | . . . . . . . . . . Distress Signals . | . . . . . . . . . . Times Spotted 140 | . 21 5 . 4 7 17 42 8 36 Peak Tracking Total 14 | . 5 2 . 3 2 5 14 4 12 Tactical Retreats 33 | . 1 4 . . . 5 12 1 10 ECM-based Alert Blocks 51 | . . . . . . . 32 . 19 Traps | -11 -10 -10 -10 -9 -8 -7 -6 -5 -4 ------- Run | Yrd Mat Min Exi Min Mat Fac Fac Fac Fac Traps Triggered 1 | . . . . 1 . . . . . Indirectly . | . . . . . . . . . . Trap Hack Attempts . | . . . . . . . . . . Triggered . | . . . . . . . . . . Disarmed . | . . . . . . . . . . Reprogrammed . | . . . . . . . . . . Reused . | . . . . . . . . . . Traps Extracted . | . . . . . . . . . . Installed . | . . . . . . . . . . Triggered . | . . . . . . . . . . Machines | -11 -10 -10 -10 -9 -8 -7 -6 -5 -4 ---------- Run | Yrd Mat Min Exi Min Mat Fac Fac Fac Fac Machines Disabled 10 | . 3 . . . . 1 5 1 . Max in Single Turn 2 | . 2 . . . . 1 1 1 . Garrison Access 2 | . . . . . . . 1 . 1 Machines Repaired . | . . . . . . . . . . Machines Dismantled . | . . . . . . . . . . Machines Sabotaged . | . . . . . . . . . . Overloaded Fab Kills . | . . . . . . . . . . Hacking | -11 -10 -10 -10 -9 -8 -7 -6 -5 -4 --------- Run | Yrd Mat Min Exi Min Mat Fac Fac Fac Fac Machines Accessed 38 | . 5 . 1 1 5 9 8 2 7 Terminals 21 | . 4 . . . 4 4 4 1 4 Fabricators 1 | . . . . . . 1 . . . Repair Stations 2 | . 1 . . . . . . . 1 Recycling Units 3 | . . . . . . 1 1 1 . Scanalyzers 6 | . . . . . 1 2 2 . 1 Garrison Access 3 | . . . . . . 1 1 . 1 Total Hacks 88 | . 16 . 1 1 19 18 17 4 12 Successful 51 | . 5 . 1 1 12 11 8 3 10 Failed 36 | . 11 . . . 7 7 8 1 2 Catastrophic 4 | . . . . . 1 . 2 . 1 Database Lockouts 1 | . . . . . . . 1 . . Manual 12 | . 5 . 1 . 3 1 1 . 1 Terminals 54 | . 13 . . . 13 9 9 3 7 Fabricators 1 | . . . . . . 1 . . . Repair Stations 5 | . 3 . . . . . . . 2 Recycling Units 5 | . . . . . . 2 2 1 . Scanalyzers 17 | . . . . . 6 4 5 . 2 Garrison Access 4 | . . . . . . 2 1 . 1 Terminal Hacks 30 | . 5 . 1 1 7 6 3 2 5 Record 2 | . 1 . . . 1 . . . . Robot Analysis 2 | . . . . . 1 1 . . . Prototype ID Bank 4 | . 1 . . . 2 . . . 1 Open Door 1 | . . . . 1 . . . . . Level Access Points 3 | . . . . . . 1 . 1 1 Branch Access Points 1 | . . . . . . . 1 . . Emergency Access Points 5 | . . . . . 2 1 . 1 1 Terminal Index 2 | . . . . . . 1 1 . . Alert Level 2 | . . . . . 1 1 . . . Unreport Threat 2 | . 1 . . . . . . . 1 Locate Traps 1 | . . . . . . . 1 . . Dispatch Records 1 | . 1 . . . . . . . . Maintenance Status 1 | . 1 . . . . . . . . Security Status 1 | . . . . . . . . . 1 Hauler Manifests 1 | . . . . . . 1 . . . Proto ID Catalog 1 | . . . 1 . . . . . . Fabricator Hacks 1 | . . . . . . 1 . . . Network Status 1 | . . . . . . 1 . . . Repair Station Hacks 2 | . . . . . . . . . 2 Scan Component 1 | . . . . . . . . . 1 Repair 1 | . . . . . . . . . 1 Recycling Unit Hacks 3 | . . . . . . 1 1 1 . Report Inventory 2 | . . . . . . 1 1 . . Retrieve Matter 1 | . . . . . . . . 1 . Scanalyzer 13 | . . . . . 5 3 3 . 2 Insert Component 1 | . . . . . 1 . . . . Retrieve Study 12 | . . . . . 4 3 3 . 2 Garrison Access Hacks 2 | . . . . . . . 1 . 1 Seal Access 2 | . . . . . . . 1 . 1 Unauthorized Hacks . | . . . . . . . . . . Terminals . | . . . . . . . . . . Fabricators . | . . . . . . . . . . Repair Stations . | . . . . . . . . . . Recycling Units . | . . . . . . . . . . Scanalyzers . | . . . . . . . . . . Garrison Access . | . . . . . . . . . . Data Cores Recovered 4 | . . . . . . 2 1 1 . Used 2 | . . . . . . 1 1 . . Hacking Detections 26 | . 5 . . . 5 5 6 1 4 Full Trace Events 4 | . 3 . . . . . 1 . . Feedback Events . | . . . . . . . . . . Feedback Blocked . | . . . . . . . . . . Robot Schematics Acquired . | . . . . . . . . . . Robots Built . | . . . . . . . . . . Authchips . | . . . . . . . . . . Time . | . . . . . . . . . . Total Robot Build Rating . | . . . . . . . . . . Part Schematics Acquired . | . . . . . . . . . . Parts Built . | . . . . . . . . . . Authchips . | . . . . . . . . . . Time . | . . . . . . . . . . Total Part Build Rating . | . . . . . . . . . . Part Studies Acquired 12 | . . . . . 4 3 3 . 2 Parts Repaired 1 | . . . . . . . . . 1 Time 44 | . . . . . . . . . 44 Parts Recycled . | . . . . . . . . . . Recycled Matter . | . . . . . . . . . . Retrieved Matter . | . . . . . . . . . . Retrieved Components . | . . . . . . . . . . Parts Scanalyzed . | . . . . . . . . . . Part Schematics Acquired . | . . . . . . . . . . Parts Damaged . | . . . . . . . . . . Bothacking | -11 -10 -10 -10 -9 -8 -7 -6 -5 -4 ------------ Run | Yrd Mat Min Exi Min Mat Fac Fac Fac Fac Used RIF Installer . | . . . . . . . . . . Robots Hacked . | . . . . . . . . . . Non-combat . | . . . . . . . . . . Combat . | . . . . . . . . . . Robot Hacks Applied . | . . . . . . . . . . Relay Couplers Released . | . . . . . . . . . . Fabnet Peak Effective % . | . . . . . . . . . . Robots Rewired . | . . . . . . . . . . Allies Hacked . | . . . . . . . . . . Hacks Repelled . | . . . . . . . . . . Allies | -11 -10 -10 -10 -9 -8 -7 -6 -5 -4 -------- Run | Yrd Mat Min Exi Min Mat Fac Fac Fac Fac Total Allies 2 | . . . . 2 . . . . . Largest Group 2 | . . . . 2 2 . . . . Highest-Rated Group 44 | . . . . 44 44 . . . . Highest-Rated Ally 31 | . . . . 31 31 . . . . Total Orders . | . . . . . . . . . . Ally Attacks 7 | . . . . 5 2 . . . . Total Damage 127 | . . . . 85 42 . . . . Kills 2 | . . . . 2 . . . . . Allies Corrupted . | . . . . . . . . . . Allies Melted . | . . . . . . . . . . Intel | -11 -10 -10 -10 -9 -8 -7 -6 -5 -4 ------- Run | Yrd Mat Min Exi Min Mat Fac Fac Fac Fac Active Infowar (turns) 2100 | . 478 . . . 40 396 762 159 265 Sensors 1317 | . . . . . . 396 762 159 . Seismic 478 | . 478 . . . . . . . . Cloaking 40 | . . . . . 40 . . . . ECM 544 | . . . . . . . 278 1 265 Robot Analysis Total 2 | . . . . . 1 1 . . . Derelict Logs Recovered 3 | . . 2 . 1 . . . . . Drone Launches . | . . . . . . . . . . Drone Recoveries . | . . . . . . . . . . Exploration | -11 -10 -10 -10 -9 -8 -7 -6 -5 -4 ------------- Run | Yrd Mat Min Exi Min Mat Fac Fac Fac Fac Turns Passed 5443 | 153 1011 1037 545 307 447 574 762 181 426 Spaces Moved 5342 | 68 584 608 337 183 493 834 1230 306 699 Core 3 | 2 . . . . . . . . 1 Treads 1690 | 66 439 608 337 183 57 . . . . Legs . | . . . . . . . . . . Wheels 145 | . 145 . . . . . . . . Hover . | . . . . . . . . . . Flight 3504 | . . . . . 436 834 1230 306 698 Fastest Speed 34 | 50 100 160 160 160 50 50 39 39 34 Average Speed 81 | 156 145 160 160 160 62 50 40 39 37 Slowest Speed 900 | 160 160 160 160 160 160 50 42 39 900 Overloaded Moves . | . . . . . . . . . . Propulsion Burnouts . | . . . . . . . . . . Robots Hopped 1 | . . . . . 1 . . . . Potential Cave-ins . | . . . . . . . . . . Cave-ins Triggered . | . . . . . . . . . . Exploration Rate (%) 42 | 4 81 98 76 48 33 20 32 13 23 Regions Visited 9 Branch Regions 3 Pre-discovered Areas 2 | . . 1 . 1 . . . . . Known Exits Taken 3 | . . . . . . 1 1 1 . Unknown Exits Taken 6 | 1 1 1 1 1 1 . . . . Scrap Searched 3 | . . 1 . 2 . . . . . Spaces Dug 61 | . . . . . . 8 31 10 12 Terrain Destroyed 138 | . 64 4 . 9 . 8 31 10 12 Melee 61 | . . . . . . 8 31 10 12 Projectile . | . . . . . . . . . . AOE 77 | . 64 4 . 9 . . . . . Terrain Rammed . | . . . . . . . . . . Walls Destroyed . | . . . . . . . . . . Machines Disabled . | . . . . . . . . . . Actions | -11 -10 -10 -10 -9 -8 -7 -6 -5 -4 --------- Run | Yrd Mat Min Exi Min Mat Fac Fac Fac Fac Total 6099 | 90 678 647 346 197 619 965 1404 334 819 Wait 407 | . 22 18 . 4 98 95 86 6 78 Move 5331 | 67 583 607 336 182 490 833 1229 305 699 Hop 1 | . . . . . 1 . . . . Pick Up 66 | 6 18 3 3 2 10 6 12 1 5 Fast Attach 13 | 6 . . . . . 3 . 1 3 Attach 21 | . 5 . . . 4 1 4 1 6 Detach 2 | . . . . . 1 . . . 1 Swap 35 | . 10 1 . 2 3 7 9 2 1 Drop 49 | . 6 3 6 5 6 8 12 . 3 Fire 81 | 11 34 13 . 1 6 1 7 5 3 Melee 89 | . . . . . . 11 45 13 20 Ram . | . . . . . . . . . . Kick . | . . . . . . . . . . Crush 3 | . . 2 . 1 . . . . . Escape Stasis . | . . . . . . . . . . Rewire 1 | . . . 1 . . . . . . Trap . | . . . . . . . . . . Miscellaneous . | . . . . . . . . . . Route ------- -11/Scrapyard -10/Materials (discovered 5 exits: [*Mat x3] / [*Min x2]) -10/Mines (discovered 4 exits: [*Mat x2] / *Exi / [*Sub]) -10/Exiles -9/Mines -8/Materials -7/Factory (discovered 5 exits: *Fac x4 / [*Low]) -6/Factory (discovered 3 exits: *Fac / *Low x2) -5/Factory (discovered 4 exits: *Fac x4) -4/Factory (discovered 4 exits: Res x4) History --------- Turn | Location | Event 10 | -11/Scrapyard | Discovered new exit (range 15) 154 | -11/Scrapyard | Entered Materials 160 | -10/Materials | Discovered new exit (range 13) 308 | -10/Materials | Build established: Mutant 389 | -10/Materials | Discovered new exit (range 11) 680 | -10/Materials | Lost 4 parts (1n1u2w) 690 | -10/Materials | Discovered new exit (range 12) 746 | -10/Materials | Discovered new exit (range 9) 754 | -10/Materials | Derelicts attacked the area 963 | -10/Materials | Discovered new exit (range 8) 1165 | -10/Materials | Entered Mines 1264 | -10/Mines | Learned location of Recycling (-8) 1269 | -10/Mines | Discovered new exit (range 10) 1338 | -10/Mines | Core integrity fell below 50% 1400 | -10/Mines | Learned 2 Materials zone layouts 1525 | -10/Mines | Discovered new exit (range 6) 1544 | -10/Mines | Discovered new exit (range 6) 1863 | -10/Mines | Received a Rocket Launcher from a helpful Derelict 2194 | -10/Mines | Deemed a non-threat by the Exiles lab entrance 2194 | -10/Mines | Discovered new exit (range 5) 2202 | -10/Mines | Entered Exiles 2241 | -10/Exiles | Met 8R-AWN 2268 | -10/Exiles | Met EX-HEX 2328 | -10/Exiles | Met EX-BIN 2351 | -10/Exiles | Aligned with FarCom system 2352 | -10/Exiles | Given EX-Vault access code 2403 | -10/Exiles | Opened EX-Vault 2426 | -10/Exiles | Found Flying Fortress v7 2436 | -10/Exiles | Found Cloak of Protection 2473 | -10/Exiles | Warned to stay clear of 0b10 Research branches 2520 | -10/Exiles | Met EX-DEC 2570 | -10/Exiles | Visited The Gauntlet 2728 | -10/Exiles | Discovered new exit (range 14) 2747 | -10/Exiles | Stole two prototypes: Flying Fortress v7, Cloak of Protection 2747 | -10/Exiles | Entered Mines 2755 | -9/Mines | Met a Derelict who couldn't figure out how to use a Trap Extractor 3045 | -9/Mines | Discovered new exit (range 5) 3054 | -9/Mines | Entered Materials 3054 | -8/Materials | Accompanied by 2 allies 3054 | -8/Materials | Evolved 4 slots: Propulsion x2, Utility x2 3059 | -8/Materials | Led the pair of lost Derelicts to an unsafe place 3248 | -8/Materials | Discovered new exit (range 4) 3501 | -8/Materials | Entered Factory 3501 | -7/Factory | Evolved 2 slots: Utility x2 3503 | -7/Factory | FarCom data flow suspended 3791 | -7/Factory | Identified exit to Factory 3837 | -7/Factory | Discovered new exit (range 12) 4003 | -7/Factory | Build established: Hacker-Mutant 4075 | -7/Factory | Entered another Factory area 4075 | -6/Factory | Evolved 2 slots: Power x1, Propulsion x1 4199 | -6/Factory | Identified exit to Lower Caves 4543 | -6/Factory | Spotted B-75 Beast 4627 | -6/Factory | Central database locked down 4792 | -6/Factory | Discovered new exit (range 5) 4836 | -6/Factory | Identified exit to Factory 4837 | -6/Factory | Entered another Factory area 4837 | -5/Factory | Evolved 2 slots: Utility x2 4957 | -5/Factory | Identified exit to Factory 4977 | -5/Factory | Spotted B-75 Beast 5018 | -5/Factory | Entered another Factory area 5018 | -4/Factory | Evolved 2 slots: Propulsion x1, Utility x1 5120 | -4/Factory | Repaired Imp. Medium Armor Plating 5191 | -4/Factory | Spotted B-86 Titan 5368 | -4/Factory | Identified exit to Research 5444 | -4/Factory | Self-destructed Last Messages --------------- >>Prototypes Downloading prototype IDs... Plasma Lance Hvy. Tesla Rifle Exp. Energy Well >>Enumerate(Guards) Retrieving latest reported positions... Security request, restricting to local area... No active security squads found. 05398_ Door malfunctions. 05400_ Terminal disabled. 05403_ System corrupted: Energy discharge (-1). 05417_ Flying Fortress v7 destroyed. 05419_ O-32 Director: "IFF HANDSHAKE FAILED. SECURING TERMINAL." 05420_ Imp. Medium Armor Plating destroyed. 05423_ Hardcell Cannon destroyed. 05429_ P-70 Sage resets P-70 Sage, system corruption cleaned. 05444_ System Shield destroyed. Map ----- +----------------------------------------------------+ | ????????????????????????????+ #?????# | | ????????????????????????????# ####### | | ????????????????????????????# | | ????????????????????????????# | | ????????????????????????????# | | ????????????????????????????# | | ????????????????????????????# ""T"" | | ????????????????????????????# """" | | ????????????????????????????# | | ????????????????????????????# | | ????????????????????????????# | | ????????????????????????????# ###########/#### | | ????????????????????????????# #????# | | ????????????????????????????# #????# | | ????????????????????????????+ #????# | | ????????????????????????????# #????# | | ????????????????????????????# #????# | | ????????????????############# #????# | | ??????????????? #????# | | ??????????????? #????# | | ??????????????? #????# | | ??????????????? #????# | | ??????????????? #????# | | ??????????????? ##########p#######?# | | ????????????????? ??????# p ########/#### | | ????????????????????????#@ pg # #? | | ????????????????????????# p #" ! ## | | ????????????????????????# #"" """ " | | ????????????????????????# #"" """ # | | ????????????????????????# #"" """ # | | ????????????????????????# #"" # | | ????????????????????????# #"T """ + | | ????????????????????????# #"" """ # | | ????????????????????????# #"" [ """ # | | ????????????????????????# #"" # | | ????????????????????????# #"" """ # | | ????????????????????????##############" """ ## | | ?????????????????????????????????????# """ ## | | ?????????????????????????????????????# # | | ?????????????????????????????????????# #T | | ????????????????????????????????????########+##### | | ????????????????????????????????????# + | | ????????????????????????????????????# """ # ##### | | ??????????